bitfinex-derivatives/quotes_SOLF0:USTF0_20250328
["timestamp","ask_amount","ask_price","bid_price","bid_amount"]
[1743195464827,4.79508509,127.93,127.91,18.16641443]
[1743195465026,7.8217,127.94,127.9,50.4036]
[1743195465226,4.7948901,127.93,127.91,18.16641443]
[1743195465534,7.87613286,127.93,127.91,18.21762726]
[1743195465735,0.05403286,127.93,127.91,0.05121283]
[1743195468332,4.80238146,127.92,127.85,300.0]
[1743195468537,39.19164991,127.94,127.87,18.16641443]
[1743195468538,4.80222421,127.91,127.87,18.16641443]
[1743195468737,7.8237,127.91,127.87,18.16641443]
[1743195469132,39.19164991,127.94,127.87,18.16641443]
[1743195469336,0.04933291,127.9,127.87,18.16641443]
[1743195469538,0.04933291,127.9,127.88,18.16641443]
[1743195470040,0.04933291,127.9,127.89,25.99091443]
[1743195470538,0.04933291,127.9,127.89,7.8245]
[1743195472231,0.04933291,127.9,127.88,7.8247]
[1743195472437,0.04933291,127.9,127.88,18.16641443]
[1743195472635,0.04933291,127.9,127.8,39.19164991]
[1743195472636,4.82349883,127.89,127.8,39.19164991]
[1743195472942,39.24636926,127.86,127.81,18.16641443]
[1743195473136,39.19164991,127.84,127.79,18.16641443]
[1743195473331,39.19164991,127.82,127.78,18.16641443]
[1743195473651,39.19164991,127.82,127.75,41.72]
[1743195473841,39.19164991,127.8,127.75,18.16641443]
[1743195474033,39.19164991,127.78,127.72,128.04925187]
[1743195474241,39.19164991,127.78,127.72,146.2156663]
[1743195474543,0.05078731,127.76,127.72,146.2156663]
[1743195474744,0.05078731,127.76,127.73,18.16641443]
[1743195474942,0.05078731,127.76,127.74,18.16641443]
[1743195475142,0.05078731,127.76,127.75,18.16641443]
[1743195475445,0.05078731,127.76,127.75,25.99951443]
[1743195475649,4.1324,127.83,127.75,18.16641443]
[1743195475939,4.1324,127.83,127.78,18.16641443]
[1743195476144,4.1324,127.83,127.78,25.99761443]
[1743195476352,4.1324,127.83,127.78,18.16641443]
[1743195476650,0.05977465,127.82,127.79,18.22374655]
[1743195478046,0.05977465,127.82,127.8,18.16641443]
[1743195478248,0.05977465,127.82,127.79,7.88783212]
[1743195478651,0.05977465,127.82,127.81,18.16641443]
[1743195478945,0.05977465,127.82,127.81,41.16]
[1743195479447,4.3448,127.89,127.84,7.8272]
[1743195479641,4.3448,127.89,127.85,18.16641443]
[1743195479842,4.3448,127.89,127.85,59.26641443]
[1743195480038,4.81187429,127.88,127.85,48.9269]
[1743195480242,4.81187429,127.88,127.87,18.16641443]
[1743195480443,4.87094265,127.88,127.85,41.15687918]
[1743195480644,4.87094265,127.88,127.87,18.16641443]
[1743195480844,4.87094265,127.88,127.87,25.99211443]
[1743195481048,0.05906836,127.88,127.87,7.8257]
[1743195481446,51.88917228,127.88,127.76,258.16]
[1743195481651,51.88917228,127.88,127.8,18.16641443]
[1743195481652,39.19164991,127.84,127.8,18.16641443]
[1743195481950,39.19164991,127.86,127.81,7.8292]
[1743195482147,4.82100387,127.85,127.82,18.16641443]
[1743195482343,11.85244332,127.87,127.82,18.16641443]
[1743195482550,0.05959719,127.85,127.82,18.21695349]
[1743195482949,0.05959719,127.85,127.82,0.05053906]
[1743195483149,0.05959719,127.85,127.82,18.21695349]
[1743195483345,0.05959719,127.85,127.82,0.05053906]
[1743195483550,83.20569986,127.84,127.76,299.12]
[1743195483753,39.19164991,127.8,127.78,18.16641443]
[1743195483943,39.19164991,127.8,127.77,18.16641443]
[1743195484250,364.0,127.79,127.77,18.16641443]
[1743195484455,43.53644991,127.86,127.79,18.16641443]
[1743195484751,39.19164991,127.84,127.8,18.16641443]
[1743195484942,7.8287,127.83,127.8,18.16641443]
[1743195485145,39.24434947,127.84,127.79,40.98]
[1743195485346,39.24434947,127.84,127.8,18.16641443]
[1743195485749,39.24434947,127.84,127.79,40.98]
[1743195485940,39.24434947,127.84,127.8,18.16641443]
[1743195486143,39.24434947,127.84,127.79,40.98]
[1743195486347,39.24434947,127.84,127.8,18.16641443]
[1743195486851,39.24434947,127.84,127.79,40.98]
[1743195487051,39.24434947,127.84,127.8,18.16641443]
[1743195487251,0.05269956,127.84,127.81,18.16641443]
[1743195489152,0.05269956,127.84,127.82,18.16641443]
[1743195492258,7.88029956,127.84,127.82,18.16641443]
[1743195492450,0.05269956,127.84,127.82,18.16641443]
[1743195492652,0.05269956,127.84,127.83,18.16641443]
[1743195492854,0.05269956,127.84,127.83,58.26641443]
[1743195493451,0.05269956,127.84,127.83,66.09461443]
[1743195493652,4.0236,127.89,127.83,58.26641443]
[1743195493851,7.8254,127.88,127.86,18.16641443]
[1743195494255,7.8254,127.88,127.83,40.1]
[1743195494458,7.8251,127.88,127.86,18.16641443]
[1743195494653,7.8251,127.88,127.83,40.1]
[1743195494854,0.05826579,127.88,127.86,18.22174967]
[1743195495252,7.88366579,127.88,127.86,0.05533524]
[1743195496461,0.05826579,127.88,127.86,18.22174967]
[1743195496952,0.05826579,127.88,127.86,26.04774967]
[1743195497157,0.05826579,127.88,127.87,18.16641443]
[1743195497354,0.05826579,127.88,127.87,57.82641443]
[1743195497660,0.05826579,127.88,127.87,47.4857]
[1743195499563,368.2752,127.95,127.91,7.823]
[1743195499863,368.2752,127.95,127.91,18.16641443]
[1743195500365,43.32284991,127.98,127.91,57.54641443]
[1743195500551,12.50940887,127.97,127.91,39.38]
[1743195500761,4.86755795,127.96,127.93,0.05490051]
[1743195501061,7.8213,127.95,127.93,0.05490051]
[1743195503361,0.05624685,127.96,127.93,0.05490051]
[1743195503751,0.05624685,127.96,127.94,18.16641443]
[1743195504957,0.05624685,127.96,127.95,18.16641443]
[1743195505352,0.05624685,127.96,127.94,7.8212]
[1743195505559,0.05624685,127.96,127.95,18.16641443]
[1743195505759,24.14366464,128.02,127.95,57.02641443]
[1743195506053,7.818,128.0,127.97,18.16641443]
[1743195506253,146.28420802,128.01,128.0,18.16641443]
[1743195506460,10.12560869,128.01,128.0,64.96421443]
[1743195506660,10.24082108,128.05,128.0,46.8]
[1743195506866,10.24082108,128.05,128.04,8.04080574]
[1743195507055,10.24082108,128.05,128.04,47.00080574]
[1743195507259,10.24082108,128.05,128.04,54.81610574]
[1743195508456,0.05637612,128.06,128.05,7.8147]
[1743195508662,0.05637612,128.06,128.05,15.85550574]
[1743195511461,7.612e-05,128.06,128.05,15.85550574]
[1743195511658,7.612e-05,128.06,128.05,8.04080574]
[1743195511859,364.0,128.21,128.05,9.36188988]
[1743195512061,7.8074,128.17,128.13,8.04080574]
[1743195512259,372.1956,128.21,128.14,8.04080574]
[1743195512660,7.8065,128.19,128.13,46.4897]
[1743195512857,0.04987619,128.17,128.14,8.04080574]
[1743195513170,0.04987619,128.17,128.15,8.09661278]
[1743195513566,0.04987619,128.17,128.15,0.05580704]
[1743195513970,0.04987619,128.17,128.13,38.68]
[1743195514169,0.04987619,128.17,128.1,38.52]
[1743195514370,39.13155458,128.18,128.11,8.04080574]
[1743195514570,7.809,128.15,128.11,8.04080574]
[1743195514771,39.13155458,128.18,128.11,8.04080574]
[1743195514967,7.81,128.13,128.09,296.3]
[1743195515167,39.13155458,128.14,128.02,257.76]
[1743195515368,0.05650931,128.12,128.1,0.05280471]
[1743195515568,4.2352,128.13,128.06,7.8137]
[1743195515877,4.2352,128.13,128.07,8.04080574]
[1743195516171,7.8117,128.1,128.07,8.04080574]
[1743195516878,0.05010688,128.1,128.07,0.05394772]
[1743195518172,0.05010688,128.1,128.07,8.09475346]
[1743195518978,0.05010688,128.1,128.07,0.05394772]
[1743195519178,39.18166146,128.1,128.07,0.05394772]
[1743195519677,0.05010688,128.1,128.07,0.05394772]
[1743195520579,7.8123,128.09,128.07,0.05394772]
[1743195520770,0.05010688,128.1,128.07,8.09475346]
[1743195521278,0.05010688,128.1,128.08,8.04080574]
[1743195521979,7.86180688,128.1,128.08,8.04080574]
[1743195522276,0.05010688,128.1,128.08,8.04080574]
[1743195522480,0.05010688,128.1,128.09,7.8123]
[1743195522779,0.05010688,128.1,128.09,15.85310574]
[1743195522977,364.0,128.17,128.09,8.04080574]
[1743195523167,364.0,128.17,128.13,8.04080574]
[1743195523368,364.0,128.17,128.13,45.86080574]
[1743195523772,7.8084,128.16,128.13,45.86080574]
[1743195524170,0.05662742,128.16,128.14,8.04080574]
[1743195524976,0.05662742,128.16,128.15,8.04080574]
[1743195525379,0.02042742,128.16,128.15,8.04080574]
[1743195525580,0.02042742,128.16,128.15,15.84940574]
[1743195526381,0.02042742,128.16,128.15,8.04080574]
[1743195526780,0.02042742,128.16,128.15,45.66080574]
[1743195526981,0.02042742,128.16,128.15,53.46940574]
[1743195527882,0.02042742,128.16,128.15,15.84940574]
[1743195528077,0.02042742,128.16,128.15,53.36940574]
[1743195528475,0.02042742,128.16,128.15,92.50096032]
[1743195528881,0.02042742,128.16,128.15,53.36940574]
[1743195529690,0.02042742,128.16,128.15,45.56080574]
[1743195530383,0.02042742,128.16,128.15,53.36940574]
[1743195530785,2.742e-05,128.16,128.15,53.36940574]
[1743195531090,2.742e-05,128.16,128.15,45.3286]
[1743195531290,2.742e-05,128.16,128.14,45.1089]
[1743195531482,2.742e-05,128.16,128.14,45.34080574]
[1743195531879,2.742e-05,128.16,128.15,15.84940574]
[1743195534705,2.742e-05,128.16,128.15,8.04080574]
[1743195535203,2.742e-05,128.16,128.15,15.84940574]
[1743195543897,4.78235576,128.22,128.21,7.805]
[1743195544099,15.81856922,128.23,128.21,7.805]
[1743195544506,7.65176922,128.23,128.18,36.44]
[1743195544701,41.14592872,128.25,128.22,8.04080574]
[1743195544900,41.19956366,128.25,128.24,7.8031]
[1743195545904,123.49142111,128.25,128.24,7.8031]
[1743195546101,123.49142111,128.25,128.24,15.84390574]
[1743195546701,123.49142111,128.25,128.24,8.04080574]
[1743195547005,123.49142111,128.25,128.22,36.4126417]
[1743195547209,123.49142111,128.25,128.22,44.45344744]
[1743195547410,123.49142111,128.25,128.22,36.4126417]
[1743195547607,7.8034,128.24,128.22,0.0526417]
[1743195549212,0.05363494,128.25,128.18,257.48]
[1743195549508,4.81351846,128.24,128.2,8.04080574]
[1743195549711,28.21207993,128.28,128.22,8.04080574]
[1743195549907,12.5171,128.27,128.18,317.62557993]
[1743195550207,12.5171,128.26,128.23,8.04080574]
[1743195550414,4.81426923,128.25,128.24,8.04080574]
[1743195550808,4.81426923,128.25,128.23,0.0575438]
[1743195551009,12.53277392,128.24,128.19,36.04]
[1743195551204,4.82063798,128.23,128.2,8.04080574]
[1743195551411,4.82063798,128.22,128.2,8.04080574]
[1743195551709,36.02,128.27,128.19,7.8062]
[1743195551908,7.8047,128.22,128.2,8.04080574]
[1743195552114,4.82301249,128.21,128.2,8.04080574]
[1743195552306,7.805,128.21,128.2,0.05227899]
[1743195552709,12.62924105,128.21,128.2,0.05227899]
[1743195552914,7.805,128.21,128.2,0.05227899]
[1743195553915,4.1417,128.23,128.2,0.05227899]
[1743195554217,4.8247699,128.22,128.2,0.05227899]
[1743195554416,7.8043,128.22,128.2,0.05227899]
[1743195556216,7.805,128.21,128.2,0.05227899]
[1743195560406,7.8046,128.22,128.2,0.05227899]
[1743195560806,4.1417,128.23,128.2,0.05227899]
[1743195561213,7.77584979,128.24,128.21,8.04080574]
[1743195561521,0.05197699,128.24,128.23,8.04080574]
[1743195562116,0.05197699,128.24,128.23,15.84450574]
[1743195563821,0.05197699,128.24,128.22,35.3]
[1743195564123,7.85537699,128.24,128.22,8.04080574]
[1743195566224,0.05197699,128.24,128.22,15.84490574]
[1743195567123,0.05197699,128.24,128.23,7.8037]
[1743195569521,0.05197699,128.24,128.2,51.48296158]
[1743195569821,0.05197699,128.24,128.22,8.04080574]
[1743195570714,0.05197699,128.24,128.23,7.8037]
[1743195570913,7.85517699,128.24,128.22,8.04080574]
[1743195571523,7.8037,128.23,128.22,8.04080574]
[1743195571719,0.05197699,128.24,128.22,8.04080574]
[1743195572119,0.05197699,128.24,128.22,15.84510574]
[1743195572324,0.05197699,128.24,128.22,8.04080574]
[1743195573124,0.05197699,128.24,128.22,15.84490574]
[1743195574425,7.85517699,128.24,128.22,8.04080574]
[1743195575128,0.05197699,128.24,128.22,15.84490574]
[1743195575528,0.05197699,128.24,128.22,8.04080574]
[1743195575829,0.05197699,128.24,128.23,7.8037]
[1743195576425,0.05197699,128.24,128.22,7.804]
[1743195576730,0.05197699,128.24,128.22,15.84480574]
[1743195577328,0.05197699,128.24,128.23,7.8037]
[1743195577630,0.05197699,128.24,128.23,15.84450574]
[1743195579225,8.5111,128.28,128.27,7.8013]
[1743195579226,4.1665,128.28,128.27,7.8013]
[1743195579526,7.78647308,128.3,128.27,8.04080574]
[1743195579730,3.9277,128.32,128.28,8.04080574]
[1743195579932,12.65404045,128.31,128.29,8.04080574]
[1743195580235,4.0776,128.33,128.31,7.7986]
[1743195580429,4.86704869,128.32,128.31,7.7986]
[1743195581522,4.86704869,128.32,128.3,41.9991]
[1743195581722,4.12822063,128.33,128.3,42.24080574]
[1743195581920,4.86606923,128.32,128.3,42.24080574]
[1743195582126,4.86554496,128.31,128.3,34.2]
[1743195583034,11.92622063,128.33,128.3,34.2]
[1743195583233,4.86527271,128.32,128.3,34.2]
[1743195583425,4.12822063,128.33,128.3,34.2]
[1743195583730,4.86508393,128.32,128.3,34.2]
[1743195583933,0.05062063,128.33,128.3,34.2]
[1743195584734,12.6633177,128.32,128.3,34.2]
[1743195584933,7.7986,128.32,128.3,34.2]
[1743195585236,0.05062063,128.33,128.3,34.2]
[1743195585434,4.86296057,128.32,128.3,41.9995]
[1743195585636,7.84862063,128.33,128.3,41.9995]
[1743195585935,4.86293445,128.32,128.3,41.9995]
[1743195586136,7.84862063,128.33,128.3,41.9995]
[1743195586525,7.7983,128.32,128.3,41.9995]
[1743195586736,0.05062063,128.33,128.3,41.9995]
[1743195587130,0.05062063,128.33,128.31,15.83960574]
[1743195587337,0.05062063,128.33,128.32,8.04080574]
[1743195587538,7.84832063,128.33,128.32,8.04080574]
[1743195587740,7.84832063,128.33,128.3,41.9992]
[1743195587930,7.84832063,128.33,128.32,8.04080574]
[1743195588130,7.84832063,128.33,128.3,41.9992]
[1743195588327,7.84832063,128.33,128.32,8.04080574]
[1743195588733,7.84832063,128.33,128.3,41.9992]
[1743195589031,7.84832063,128.33,128.32,8.04080574]
[1743195589331,7.84832063,128.33,128.3,41.9992]
[1743195589530,7.84832063,128.33,128.32,8.04080574]
[1743195589940,7.84832063,128.33,128.3,41.9992]
[1743195590133,7.84832063,128.33,128.32,8.04080574]
[1743195590331,4.90510737,128.33,128.29,0.05458708]
[1743195590548,0.05062063,128.33,128.29,0.05458708]
[1743195590736,7.84832063,128.33,128.31,15.83940574]
[1743195591131,7.84832063,128.33,128.31,7.7986]
[1743195591132,0.05062063,128.33,128.31,7.7986]
[1743195591840,0.05062063,128.33,128.32,15.83910574]
[1743195592136,0.05062063,128.33,128.3,33.68]
[1743195592745,0.05062063,128.33,128.3,41.4791]
[1743195593043,7.84852063,128.33,128.3,41.4791]
[1743195593240,0.05062063,128.33,128.3,33.68]
[1743195593845,0.05062063,128.33,128.31,7.7985]
[1743195594939,7.84842063,128.33,128.3,41.4792]
[1743195595146,0.05062063,128.33,128.3,41.4792]
[1743195595550,7.84852063,128.33,128.31,7.7987]
[1743195596447,7.84852063,128.33,128.3,41.4792]
[1743195596639,7.7983,128.32,128.3,41.4792]
[1743195597652,7.84862063,128.33,128.3,41.4792]
[1743195599154,7.84862063,128.33,128.31,7.7988]
[1743195600253,0.05062063,128.33,128.32,7.7983]
[1743195600657,0.05062063,128.33,128.32,15.83910574]
[1743195600953,0.05062063,128.33,128.32,7.7983]
[1743195601147,0.05062063,128.33,128.31,7.7985]
[1743195601353,16.43068259,128.32,128.29,0.05458708]
[1743195601551,16.43068259,128.32,128.24,49.63068259]
[1743195601751,7.7995,128.3,128.27,8.04080574]
[1743195601953,16.43068259,128.32,128.27,8.04080574]
[1743195602148,16.43068259,128.32,128.24,49.63068259]
[1743195602358,7.7991,128.31,128.28,8.04080574]
[1743195602657,0.057695,128.31,128.28,8.09641]
[1743195602857,7.8001,128.29,128.28,0.05560426]
[1743195603657,12.65147273,128.29,128.22,33.12]
[1743195603853,16.43068259,128.27,128.22,41.16080574]
[1743195604553,28.53508259,128.28,128.22,33.12]
[1743195604751,0.05873244,128.26,128.25,8.04080574]
[1743195604953,0.05873244,128.26,128.23,0.04971561]
[1743195605151,0.05873244,128.26,128.25,15.84330574]
[1743195606160,0.05873244,128.26,128.25,8.04080574]
[1743195607357,0.05873244,128.26,128.23,0.04971561]
[1743195607659,7.86093244,128.26,128.24,8.04080574]
[1743195607854,0.05873244,128.26,128.23,0.04971561]
[1743195608262,7.8031,128.24,128.23,0.04971561]
[1743195609359,7.8028,128.25,128.23,0.04971561]
[1743195611863,7.86093244,128.26,128.24,8.04080574]
[1743195612065,7.86093244,128.26,128.25,8.04080574]
[1743195612459,7.86093244,128.26,128.23,7.85341561]
[1743195612665,7.86093244,128.26,128.25,8.04080574]
[1743195612965,7.86093244,128.26,128.23,7.85341561]
[1743195613164,7.86093244,128.26,128.25,8.04080574]
[1743195613570,7.8029,128.25,128.23,0.04971561]
[1743195613773,7.8029,128.25,128.24,8.04080574]
[1743195613967,7.8029,128.25,128.23,0.04971561]
[1743195614174,7.8031,128.24,128.23,0.04971561]
[1743195614367,7.8031,128.24,128.23,8.09052135]
[1743195614766,0.05873244,128.26,128.23,8.09052135]
[1743195614971,7.8028,128.25,128.24,8.04080574]
[1743195615768,7.8031,128.24,128.23,0.04971561]
[1743195615971,0.05873244,128.26,128.24,8.04080574]
[1743195616472,21.28969772,128.25,128.19,30.11]
[1743195616661,16.43068259,128.23,128.2,8.04080574]
[1743195617058,16.43068259,128.23,128.19,30.11]
[1743195617059,16.43068259,128.21,128.19,30.11]
[1743195617460,7.8056,128.2,128.19,30.11]
[1743195617869,4.85502168,128.2,128.19,30.11]
[1743195618070,7.85981317,128.21,128.19,38.15080574]
[1743195618263,0.05461317,128.21,128.19,38.15080574]
[1743195618463,0.05461317,128.21,128.2,40.68080574]
[1743195618668,0.05461317,128.21,128.2,32.64]
[1743195619474,0.05461317,128.21,128.2,40.68080574]
[1743195620178,0.05461317,128.21,128.2,48.48640574]
[1743195620477,0.05461317,128.21,128.2,48.46640574]
[1743195621672,0.05461317,128.21,128.2,40.66080574]
[1743195622474,0.05461317,128.21,128.2,48.46640574]
[1743195622676,0.05461317,128.21,128.2,8.04080574]
[1743195623582,7.85961317,128.21,128.19,32.48]
[1743195623772,7.85961317,128.21,128.19,40.52080574]
[1743195625281,7.85961317,128.21,128.19,8.04080574]
[1743195626179,0.05461317,128.21,128.2,8.04080574]
[1743195626872,0.05461317,128.21,128.2,15.84640574]
[1743195627575,0.05461317,128.21,128.2,8.04080574]
[1743195627771,7.85991317,128.21,128.17,32.38]
[1743195627972,7.85991317,128.21,128.2,8.04080574]
[1743195628380,7.85991317,128.21,128.17,32.38]
[1743195628578,7.85991317,128.21,128.2,8.04080574]
[1743195628782,7.85991317,128.21,128.19,8.04080574]
[1743195629280,7.85991317,128.21,128.18,7.8067]
[1743195629478,7.85991317,128.21,128.19,8.04080574]
[1743195629972,7.85991317,128.21,128.18,7.8067]
[1743195630173,7.85991317,128.21,128.19,8.04080574]
[1743195630582,7.85991317,128.21,128.19,15.84700574]
[1743195630883,16.48529576,128.21,128.14,56.19]
[1743195631180,16.43068259,128.17,128.14,56.19]
[1743195631380,7.8071,128.18,128.15,8.04080574]
[1743195631580,0.0537272,128.17,128.16,7.808]
[1743195631781,16.43068259,128.21,128.17,8.04080574]
[1743195631987,0.04968948,128.18,128.17,8.04080574]
[1743195632171,0.04968948,128.18,128.16,7.808]
[1743195632487,0.04968948,128.18,128.17,8.04080574]
[1743195632680,7.85648948,128.18,128.17,8.04080574]
[1743195632876,7.85648948,128.18,128.15,40.1683]
[1743195633080,7.85648948,128.18,128.17,8.04080574]
[1743195633482,7.85648948,128.18,128.15,40.1683]
[1743195633675,7.85648948,128.18,128.17,8.04080574]
[1743195633878,7.85648948,128.18,128.15,40.1683]
[1743195634077,7.85648948,128.18,128.17,8.04080574]
[1743195634276,7.8074,128.17,128.15,40.1683]
[1743195634474,7.8074,128.17,128.15,40.40080574]
[1743195634673,0.04968948,128.18,128.13,32.24]
[1743195634875,7.8084,128.16,128.15,8.04080574]
[1743195635380,7.8084,128.16,128.13,40.0494]
[1743195635581,7.8084,128.16,128.15,8.04080574]
[1743195635781,7.8084,128.16,128.13,40.0494]
[1743195635981,7.8084,128.16,128.15,8.04080574]
[1743195636182,7.8084,128.16,128.13,40.0494]
[1743195636384,7.8084,128.16,128.15,8.04080574]
[1743195636586,7.8084,128.16,128.14,7.8091]
[1743195636889,7.8084,128.16,128.15,8.04080574]
[1743195637281,7.8084,128.16,128.14,7.8091]
[1743195637587,7.8084,128.16,128.15,8.04080574]
[1743195637790,7.8088,128.15,128.13,39.9495]
[1743195637982,7.8088,128.15,128.14,8.04080574]
[1743195638176,7.8635102,128.15,128.14,8.04080574]
[1743195638377,7.8635102,128.15,128.13,7.8095]
[1743195638576,7.8635102,128.15,128.13,15.85030574]
[1743195638784,7.8635102,128.15,128.13,8.04080574]
[1743195638990,0.0547102,128.15,128.12,289.38]
[1743195639189,0.0547102,128.15,128.12,297.42080574]
[1743195639390,7.8092,128.14,128.12,297.42080574]
[1743195639692,0.0547102,128.15,128.11,25.34]
[1743195639879,7.811,128.12,128.1,3.75]
[1743195640083,16.43068259,128.13,128.1,3.75]
[1743195640286,0.04930361,128.12,128.08,32.06]
[1743195640593,0.04930361,128.12,128.11,7.8111]
[1743195640795,16.43068259,128.17,128.11,8.04080574]
[1743195640982,16.43068259,128.17,128.14,7.8089]
[1743195641686,24.23858259,128.17,128.14,7.8089]
[1743195641889,24.29738383,128.17,128.14,7.86206991]
[1743195642089,16.48948383,128.17,128.14,0.05316991]
[1743195642788,7.8083,128.16,128.14,0.05316991]
[1743195643386,16.48948383,128.17,128.14,0.05316991]
[1743195643989,7.8085,128.16,128.14,0.05316991]
[1743195644696,16.48948383,128.17,128.14,0.05316991]
[1743195645094,7.8086,128.16,128.14,0.05316991]
[1743195645394,16.48948383,128.17,128.14,0.05316991]
[1743195645589,7.8085,128.16,128.14,0.05316991]
[1743195645791,16.48948383,128.17,128.14,0.05316991]
[1743195646395,7.8086,128.15,128.14,0.05316991]
[1743195648692,16.48948383,128.17,128.14,0.05316991]
[1743195648894,0.05880124,128.17,128.15,31.76]
[1743195649095,0.05880124,128.17,128.16,8.04080574]
[1743195649285,0.05880124,128.17,128.16,15.84880574]
[1743195649491,0.05880124,128.17,128.16,7.808]
[1743195650198,0.05880124,128.17,128.15,39.5685]
[1743195650397,0.05880124,128.17,128.15,39.80080574]
[1743195651092,0.05880124,128.17,128.15,25.2239]
[1743195651291,4.36270124,128.17,128.15,25.2239]
[1743195651499,7.808,128.16,128.15,25.2239]
[1743195651695,16.43068259,128.16,128.14,0.05316991]
[1743195652000,7.8104,128.12,128.11,57.28]
[1743195652292,16.43068259,128.13,128.09,7.812]
[1743195652493,7.8104,128.12,128.1,8.04080574]
[1743195652896,16.43068259,128.13,128.1,7.8115]
[1743195653097,0.05894176,128.12,128.08,31.7]
[1743195653298,0.05894176,128.12,128.1,8.04080574]
[1743195653498,0.05894176,128.12,128.08,31.7]
[1743195653693,7.86944176,128.12,128.1,8.04080574]
[1743195653900,7.86944176,128.12,128.08,31.7]
[1743195654102,7.86944176,128.12,128.1,8.04080574]
[1743195654297,7.86944176,128.12,128.1,7.8114]
[1743195654494,7.86944176,128.12,128.09,39.68080574]
[1743195654495,7.8111,128.11,128.09,31.64]
[1743195654691,7.8111,128.11,128.09,39.68080574]
[1743195654892,7.8111,128.11,128.09,47.49280574]
[1743195655904,7.86964176,128.12,128.1,7.8117]
[1743195656202,0.05894176,128.12,128.1,8.04080574]
[1743195656407,16.43068259,128.11,128.07,25.37]
[1743195656598,16.43068259,128.11,128.08,8.04080574]
[1743195657002,7.8122,128.1,128.07,33.1831]
[1743195657203,7.8122,128.1,128.08,8.04080574]
[1743195657404,7.812,128.1,128.07,33.1831]
[1743195657705,16.43068259,128.11,128.07,33.1831]
[1743195657706,16.43068259,128.11,128.08,8.04080574]
[1743195657902,7.8117,128.1,128.08,8.04080574]
[1743195658098,0.05894176,128.12,128.08,7.8128]
[1743195659304,0.05894176,128.12,128.1,8.04080574]
[1743195659508,0.05894176,128.12,128.11,8.04080574]
[1743195660507,0.05894176,128.12,128.11,15.85190574]
[1743195660895,0.05894176,128.12,128.11,8.04080574]
[1743195661099,0.05894176,128.12,128.11,15.85190574]
[1743195662407,7.7507987,128.17,128.16,7.808]
[1743195662609,7.7507987,128.19,128.16,8.04080574]
[1743195662803,4.2247,128.2,128.14,31.38]
[1743195663005,10.49911115,128.22,128.18,8.04080574]
[1743195663202,4.84635041,128.21,128.18,8.04080574]
[1743195663408,4.84651764,128.2,128.17,31.4]
[1743195663708,7.8068,128.18,128.17,31.4]
[1743195663908,21.27626556,128.18,128.14,289.0]
[1743195664101,7.8086,128.15,128.14,31.4]
[1743195664300,16.43068259,128.16,128.11,31.38]
[1743195664502,7.8103,128.13,128.11,31.38]
[1743195664707,7.8103,128.13,128.11,39.42080574]
[1743195665002,7.86588946,128.13,128.11,47.23150574]
[1743195665203,0.05608946,128.13,128.11,31.38]
[1743195665406,0.05608946,128.13,128.12,8.04080574]
[1743195665907,12.65297101,128.13,128.07,25.37]
[1743195666107,21.2750746,128.12,128.08,8.04080574]
[1743195666308,16.43068259,128.12,128.08,8.04080574]
[1743195666507,16.43068259,128.12,128.07,25.37]
[1743195666807,16.43068259,128.1,128.07,25.37]
[1743195667111,7.8129,128.08,128.07,25.37]
[1743195667410,16.48078895,128.1,128.07,19.52]
[1743195667614,16.48078895,128.1,128.03,31.4]
[1743195667808,16.48078895,128.1,128.06,8.04080574]
[1743195668011,16.43068259,128.1,128.06,8.04080574]
[1743195668210,16.43068259,128.1,128.04,31.4]
[1743195668211,0.05545205,128.09,128.04,31.4]
[1743195668511,7.86805205,128.09,128.06,8.04080574]
[1743195669208,7.813,128.08,128.05,7.8147]
[1743195669516,0.05545205,128.09,128.06,8.04080574]
[1743195670013,0.05545205,128.09,128.07,8.04080574]
[1743195670215,0.05545205,128.09,128.08,8.04080574]
[1743195670714,7.86775205,128.09,128.05,7.8144]
[1743195670914,7.86775205,128.09,128.08,8.04080574]
[1743195671413,7.86775205,128.09,128.05,7.8144]
[1743195671613,7.86775205,128.09,128.08,8.04080574]
[1743195672008,7.813,128.08,128.05,7.8144]
[1743195673014,7.813,128.08,128.07,8.04080574]
[1743195673611,0.05545205,128.09,128.04,91.78]
[1743195673612,7.8147,128.05,128.04,91.78]
[1743195674010,0.05708348,128.06,128.04,39.44080574]
[1743195674216,7.87168348,128.06,128.05,8.04080574]
[1743195676905,0.05708348,128.06,128.02,280.85]
[1743195677106,16.48776607,128.06,128.02,326.00080574]
[1743195677514,7.8157,128.04,128.02,326.00080574]
[1743195677819,16.48776607,128.06,128.03,8.04080574]
[1743195678206,24.30196607,128.06,128.03,7.8156]